bitfinex-derivatives/quotes_ETHF0:USTF0_20250317
["timestamp","ask_amount","ask_price","bid_price","bid_amount"]
[1742201674924,4.44417,1904.6,1904.5,1.4414]
[1742201675126,4.52957028,1904.6,1904.5,1.4414]
[1742201675326,4.44417,1904.6,1904.5,2.49162]
[1742201675519,4.44417,1904.6,1904.5,1.4414]
[1742201676227,3.394,1904.6,1904.5,2.49162]
[1742201676933,3.394,1904.6,1904.5,5.69942]
[1742201677230,4.44417,1904.6,1904.5,4.6492]
[1742201677733,4.44417,1904.6,1904.5,5.69942]
[1742201677927,4.44417,1904.6,1904.5,4.6492]
[1742201681645,4.44417,1904.6,1904.5,3.2078]
[1742201682032,4.52957208,1904.6,1904.5,3.2078]
[1742201686138,1.13557208,1904.6,1904.5,3.2078]
[1742201686342,4.52957208,1904.6,1904.5,3.2078]
[1742201686642,4.52957208,1904.6,1904.5,4.6143]
[1742201686844,4.44417,1904.6,1904.5,4.6143]
[1742201688244,4.44417,1904.6,1904.5,3.2078]
[1742201688435,4.52956838,1904.6,1904.5,3.2078]
[1742201688833,5.21326838,1904.6,1904.5,3.2078]
[1742201692045,1.05022,1904.5,1904.4,1.396]
[1742201692243,3.08542,1904.5,1904.4,1.396]
[1742201693544,3.08542,1904.5,1904.3,3.2078]
[1742201693545,1.05028,1904.4,1904.3,3.2078]
[1742201693741,2.50818,1904.4,1904.3,3.2078]
[1742201694138,2.50818,1904.4,1904.3,4.5887]
[1742201694547,5.90118,1904.4,1904.3,4.5887]
[1742201695751,1.05041,1904.2,1904.1,3.2078]
[1742201696248,2.0296,1904.3,1904.1,4.25824]
[1742201696249,3.07997,1904.3,1904.1,4.25824]
[1742201696448,1.05039,1904.2,1904.1,4.25824]
[1742201696744,1.72337,1904.3,1904.1,4.25824]
[1742201697048,1.72337,1904.3,1904.2,1.05039]
[1742201697235,3.07997,1904.3,1904.2,2.43029]
[1742201697641,3.07997,1904.3,1904.2,1.3799]
[1742201699146,3.15169254,1904.3,1904.2,1.3799]
[1742201700444,1.05044,1904.1,1904.0,0.00788001]
[1742201700645,3.394,1904.1,1904.0,1.42178001]
[1742201700846,4.44444,1904.1,1904.0,1.42178001]
[1742201701150,5.87746254,1904.1,1904.0,1.42178001]
[1742201701651,5.87746254,1904.1,1904.0,2.47228001]
[1742201701851,4.82702254,1904.1,1904.0,2.47228001]
[1742201702044,5.87746254,1904.1,1904.0,1.42178001]
[1742201706154,5.96288648,1904.1,1904.0,0.00788001]
[1742201706353,1.05055,1903.9,1903.8,1.3593]
[1742201707050,1.05066,1903.7,1903.6,42.1593]
[1742201707250,7.65246,1903.7,1903.6,42.1593]
[1742201707456,7.7379027,1903.7,1903.6,42.1593]
[1742201707649,7.7379027,1903.7,1903.6,40.8]
[1742201707850,8.3994027,1903.7,1903.6,40.8]
[1742201708155,1.05072,1903.6,1903.2,3.2078]
[1742201708350,0.6982,1903.5,1903.2,3.2078]
[1742201708545,5.85225,1903.4,1903.3,42.2124]
[1742201709259,5.92397254,1903.4,1903.3,42.2124]
[1742201711560,4.87312254,1903.4,1903.3,42.2124]
[1742201711763,5.92395254,1903.4,1903.3,42.2124]
[1742201712657,6.61655254,1903.4,1903.3,42.2124]
[1742201714063,6.61655254,1903.4,1903.3,40.8]
[1742201714260,6.70201155,1903.4,1903.3,40.8]
[1742201714459,9.90981155,1903.4,1903.3,40.8]
[1742201715169,1.05089,1903.3,1903.2,0.00788001]
[1742201715358,2.49819,1903.3,1903.2,0.00788001]
[1742201715559,2.58365467,1903.3,1903.2,40.80788001]
[1742201716258,2.65537721,1903.3,1903.2,40.80788001]
[1742201716756,2.65537508,1903.3,1903.2,40.80788001]
[1742201717861,3.55218508,1903.3,1903.2,41.85882001]
[1742201718060,0.07172254,1903.3,1903.2,41.85882001]
[1742201718258,3.46672254,1903.3,1903.2,43.21502001]
[1742201726574,5.87,1904.5,1903.2,48.16408001]
[1742201726771,5.87,1904.5,1904.2,1.05039]
[1742201726772,2.0351,1904.3,1904.2,1.05039]
[1742201727170,1.46081719,1904.3,1904.2,1.05039]
[1742201727379,1.05033,1904.3,1904.2,42.2127]
[1742201727676,4.44533,1904.3,1904.2,42.2127]
[1742201728174,4.44533,1904.3,1904.2,40.8]
[1742201728370,4.85581294,1904.3,1904.2,41.85039]
[1742201728580,1.05820001,1904.4,1904.2,41.85039]
[1742201728876,4.44533,1904.3,1904.2,40.8]
[1742201729074,4.5307438,1904.3,1904.2,40.8]
[1742201729279,3.395,1904.3,1904.2,40.8]
[1742201729982,4.814,1904.3,1904.2,40.8]
[1742201730678,4.814,1904.3,1904.2,43.28789]
[1742201730874,1.419,1904.3,1904.2,43.28789]
[1742201731178,4.813,1904.3,1904.2,43.28789]
[1742201731783,4.813,1904.3,1904.2,2.48789]
[1742201732183,4.813,1904.3,1904.2,43.28789]
[1742201732677,3.394,1904.3,1904.2,43.28789]
[1742201736277,4.7978,1904.3,1904.2,43.28789]
[1742201738285,5.84813,1904.3,1904.2,42.2375]
[1742201738483,5.5154,1904.3,1904.1,3.21568001]
[1742201738787,2.38289,1904.2,1904.1,3.21568001]
[1742201738980,2.38289,1904.2,1904.1,44.01568001]
[1742201739182,2.38289,1904.2,1904.1,3.21568001]
[1742201739681,1.3325,1904.2,1904.1,5.67202001]
[1742201740086,2.38289,1904.2,1904.1,4.62158001]
[1742201742591,1.3325,1904.2,1904.1,5.67202001]
[1742201742891,3.393,1904.2,1904.1,5.67200001]
[1742201743189,4.7385,1904.2,1904.1,5.67200001]
[1742201743894,0.7201,1904.3,1904.2,1.05039]
[1742201744092,5.4586,1904.3,1904.2,3.09049]
[1742201744295,4.7385,1904.3,1904.2,3.09049]
[1742201744880,5.78883,1904.3,1904.2,2.0401]
[1742201745493,4.7385,1904.3,1904.2,3.09049]
[1742201745692,3.393,1904.3,1904.2,3.09049]
[1742201746194,4.8445,1904.3,1904.2,3.09049]
[1742201746581,1.4515,1904.3,1904.2,3.09049]
[1742201746794,4.8445,1904.3,1904.2,3.09049]
[1742201747394,5.89483,1904.3,1904.2,3.09049]
[1742201747796,1.05039,1904.2,1904.1,3.21568001]
[1742201747995,3.07679,1904.2,1904.1,3.21568001]
[1742201748789,2.0264,1904.2,1904.1,4.26612001]
[1742201749597,2.0264,1904.2,1904.1,5.61722001]
[1742201752793,3.07679,1904.2,1904.1,4.56678001]
[1742201752999,2.0264,1904.2,1904.1,1.35898001]
[1742201753197,2.0264,1904.2,1904.1,2.40942001]
[1742201753895,3.07679,1904.2,1904.1,2.40942001]
[1742201754489,3.07679,1904.2,1904.1,1.35898001]
[1742201754688,3.07679,1904.2,1904.1,0.00788001]
[1742201754890,3.74979,1904.2,1904.1,0.00788001]
[1742201755496,3.83520904,1904.2,1904.1,0.00788001]
[1742201757299,3.83520904,1904.2,1904.1,1.38598001]
[1742201759403,3.83520904,1904.2,1904.1,0.00788001]
[1742201759603,3.83521137,1904.2,1904.1,0.00788001]
[1742201762603,3.90693899,1904.2,1904.1,0.00788001]
[1742201764305,1.05044,1904.1,1904.0,40.8]
[1742201764502,2.60429505,1904.1,1904.0,40.8]
[1742201765105,31.7392976,1904.1,1904.0,40.8]
[1742201765303,1.05061,1903.8,1903.7,4.5388]
[1742201765503,4.51533762,1903.8,1903.7,3.2078]
[1742201765704,4.51533762,1903.8,1903.7,44.0078]
[1742201766308,3.46472762,1903.8,1903.7,45.05846]
[1742201767409,4.51533762,1903.8,1903.7,44.0078]
[1742201767608,3.46472762,1903.8,1903.7,45.05846]
[1742201768913,4.51533762,1903.8,1903.7,44.0078]
[1742201769209,4.91272762,1903.8,1903.7,45.05846]
[1742201769602,4.91272762,1903.8,1903.7,44.0078]
[1742201769603,5.96333762,1903.8,1903.7,44.0078]
[1742201772205,4.91272762,1903.8,1903.7,45.05846]
[1742201772709,3.46472762,1903.8,1903.7,45.05846]
[1742201774009,0.07172762,1903.8,1903.7,45.05846]
[1742201774311,3.46472762,1903.8,1903.7,45.05846]
[1742201774507,0.07172762,1903.8,1903.7,45.05846]
[1742201775613,3.393,1904.0,1903.9,1.05055]
[1742201775806,3.393,1904.0,1903.9,4.25835]
[1742201776204,3.393,1904.0,1903.9,46.42035]
[1742201776405,1.05042,1904.2,1904.1,1.05044]
[1742201776609,4.44342,1904.2,1904.1,4.25824]
[1742201776805,4.44342,1904.2,1904.1,3.2078]
[1742201777009,4.44342,1904.2,1904.1,3.9007]
[1742201777210,5.88332,1904.2,1904.1,3.9007]
[1742201777512,5.88332,1904.2,1904.1,5.2627]
[1742201778017,4.44342,1904.2,1904.1,5.2627]
[1742201778217,4.44342,1904.2,1904.1,6.31314]
[1742201778610,3.393,1904.2,1904.1,6.31314]
[1742201779818,29.137,1904.3,1904.2,1.05039]
[1742201780020,32.53,1904.3,1904.2,43.28139]
[1742201780712,29.137,1904.3,1904.2,43.28139]
[1742201781014,3.393,1905.2,1904.2,54.124]
[1742201781316,0.0853765,1905.1,1905.0,1.04991]
[1742201781510,4.8378,1905.1,1905.0,1.04991]
[1742201781709,4.6655,1905.3,1905.2,1.04984]
[1742201781913,7.42686381,1905.3,1905.2,1.04984]
[1742201782111,6.69816381,1905.3,1905.2,1.04984]
[1742201782317,1.44268001,1905.4,1905.3,1.04978]
[1742201782515,3.41588001,1905.4,1905.3,2.46518]
[1742201783222,0.00788001,1905.4,1905.3,2.46518]
[1742201783623,0.00788001,1905.4,1905.3,43.26518]
[1742201784318,1.05761001,1905.4,1905.3,42.2154]
[1742201784519,1.37958001,1905.4,1905.3,43.26518]
[1742201785919,0.00788001,1905.4,1905.3,43.26518]
[1742201786524,0.00788001,1905.4,1905.3,2.46518]
[1742201789726,32.545,1905.5,1905.4,1.04973]
[1742201789923,32.545,1905.5,1905.4,5.66983]
[1742201790126,32.61672254,1905.5,1905.4,5.66983]
[1742201790321,0.07172254,1905.5,1905.4,46.46983]
[1742201790527,10.33546,1905.9,1905.4,48.0444]
[1742201790727,5.12566,1905.9,1905.7,1.04951]
[1742201791028,5.12566,1905.9,1905.8,1.427]
[1742201791229,5.12566,1905.9,1905.8,2.47651]
[1742201793737,0.08531363,1906.4,1906.3,2.47623]
[1742201794235,0.08531363,1906.4,1906.3,8.47623]
[1742201794440,1.04909,1906.6,1906.3,10.6348]
[1742201794632,1.04918,1906.4,1906.3,4.6348]
[1742201794940,3.53230643,1906.4,1906.3,45.05703]
[1742201795127,3.53230643,1906.4,1906.3,44.0078]
[1742201795330,3.447,1906.4,1906.3,45.05703]
[1742201796529,4.25682,1906.7,1906.5,1.0491]
[1742201796731,3.448,1906.6,1906.5,1.0491]
[1742201796930,3.448,1906.6,1906.4,1.3768]
[1742201796931,4.49707,1906.6,1906.4,2.42594]
[1742201797436,3.448,1906.6,1906.1,3.2078]
[1742201797637,3.448,1906.6,1906.3,1.04923]
[1742201797931,0.69,1906.5,1906.2,43.22604]
[1742201798138,0.69,1906.5,1906.4,1.04918]
[1742201798335,0.69,1906.5,1906.2,42.1768]
[1742201798536,1.73912,1906.5,1906.3,1.04919]
[1742201799934,1.04923,1906.4,1906.2,42.1768]
[1742201800146,5.19273,1906.3,1906.2,40.8]
[1742201800336,5.19276,1906.3,1906.1,1.04933]
[1742201800532,5.19276,1906.3,1906.0,1.33248001]
[1742201800843,1.0493,1906.2,1906.1,1.04934]
[1742201801037,1.04929,1906.2,1906.0,43.18184001]
[1742201801237,1.04929,1906.2,1906.1,1.3246]
[1742201801440,1.04929,1906.2,1906.1,2.37393]
[1742201801639,5.19278,1906.3,1906.1,2.37391]
[1742201802037,1.04929,1906.2,1906.1,1.3246]
[1742201802237,4.1435,1906.3,1906.1,1.3246]
[1742201802442,5.19277,1906.3,1906.1,2.37393]
[1742201802636,1.04929,1906.2,1906.1,1.3246]
[1742201802836,1.04929,1906.2,1906.0,41.85726001]
[1742201803031,1.04929,1906.2,1906.0,43.19476001]
[1742201803245,4.1435,1906.3,1906.1,1.04933]
[1742201803444,5.19275,1906.3,1906.1,2.38683]
[1742201804042,1.12101254,1906.2,1906.1,1.3375]
[1742201804237,0.07172254,1906.2,1906.1,2.38684]
[1742201804543,1.12101254,1906.2,1906.1,1.3375]
[1742201804740,0.07172254,1906.2,1906.1,1.3375]
[1742201804942,0.07172254,1906.2,1906.1,2.38684]
[1742201806244,1.51922254,1906.2,1906.1,5.59464]
[1742201808448,2.56851254,1906.2,1906.1,5.59464]
[1742201809351,1.51922254,1906.2,1906.1,5.59464]
[1742201809552,1.51922254,1906.2,1906.1,2.38684]
[1742201809753,1.51922254,1906.2,1906.1,5.59464]
[1742201809952,1.51922254,1906.2,1906.1,2.38684]
[1742201810149,1.51922254,1906.2,1906.1,5.59464]
[1742201810453,0.07172254,1906.2,1906.1,5.59464]
[1742201810647,1.12101254,1906.2,1906.1,4.5453]
[1742201810851,2.47151254,1906.2,1906.1,3.2078]
[1742201811654,2.47151254,1906.2,1906.1,4.25714]
[1742201811952,2.47151254,1906.2,1906.1,3.2078]
[1742201812747,1.04934,1906.1,1906.0,2.38923001]
[1742201812948,3.74434,1906.1,1906.0,2.38923001]
[1742201813256,3.81606254,1906.1,1906.0,2.38923001]
[1742201813554,2.76672254,1906.1,1906.0,2.38923001]
[1742201813755,3.81606254,1906.1,1906.0,2.38923001]
[1742201814154,3.81606254,1906.1,1906.0,1.33988001]
[1742201815357,3.81606254,1906.1,1906.0,2.38928001]
[1742201815855,3.81606254,1906.1,1906.0,1.33988001]
[1742201816853,3.81606254,1906.1,1906.0,0.00788001]
[1742201817558,3.81606254,1906.1,1906.0,1.33378001]
[1742201818551,3.81606254,1906.1,1906.0,0.00788001]
[1742201820657,7.02386254,1906.1,1906.0,0.00788001]
[1742201821058,7.10919197,1906.1,1906.0,0.00788001]
[1742201821465,7.02386254,1906.1,1906.0,0.00788001]
[1742201822662,1.0494,1906.0,1905.9,40.8]
[1742201822955,5.8589,1906.0,1905.9,40.8]
[1742201823158,5.93062254,1906.0,1905.9,40.8]
[1742201826257,2.50762254,1906.0,1905.9,40.8]
[1742201826461,5.92562254,1906.0,1905.9,42.1724]
[1742201826763,5.92562254,1906.0,1905.9,42.89]
[1742201827257,5.92562254,1906.0,1905.9,43.93945]
[1742201827258,3.48972254,1906.0,1905.9,43.93945]
[1742201827454,3.48972254,1906.0,1905.9,44.60385]
[1742201827655,4.53912254,1906.0,1905.9,43.5544]
[1742201827857,5.89302254,1906.0,1905.9,42.89]
[1742201828160,4.84362254,1906.0,1905.9,43.93945]
[1742201830459,2.47502254,1906.0,1905.9,43.93945]
[1742201830667,4.54012254,1906.0,1905.9,42.89]
[1742201830961,4.54012254,1906.0,1905.9,40.8]
[1742201830962,5.99152254,1906.0,1905.9,40.8]
[1742201831356,6.07685148,1906.0,1905.9,40.8]
[1742201831560,1.04945,1905.9,1905.8,0.00788001]
[1742201831763,3.93155,1905.9,1905.8,0.00788001]
[1742201831965,3.93155,1905.9,1905.8,40.80788001]
[1742201832164,4.00327254,1905.9,1905.8,40.80788001]
[1742201833170,4.08860992,1905.9,1905.8,40.80788001]
[1742201833369,1.04962,1905.6,1905.5,3.2078]
[1742201833665,3.419,1905.6,1905.5,5.62357]
[1742201834169,5.86814254,1905.6,1905.5,4.5739]
[1742201834364,4.81852254,1905.6,1905.5,45.3739]
[1742201834763,5.86814254,1905.6,1905.5,45.3739]
[1742201836274,4.81852254,1905.6,1905.5,46.42357]
[1742201836672,3.49072254,1905.6,1905.5,46.42357]
[1742201836973,4.54034254,1905.6,1905.5,45.3739]
[1742201837165,5.85824254,1905.6,1905.5,45.3739]
[1742201838269,5.85824254,1905.6,1905.5,42.1661]
[1742201840173,1.04967,1905.5,1905.4,0.00788001]
[1742201840476,3.87307,1905.5,1905.4,0.00788001]
[1742201840669,3.87307,1905.5,1905.4,40.80788001]
[1742201841169,3.94479254,1905.5,1905.4,40.80788001]
[1742201847680,4.03014645,1905.5,1905.4,40.80788001]
[1742201847874,4.03014645,1905.5,1905.4,0.00788001]
[1742201848071,4.10186899,1905.5,1905.4,0.00788001]
[1742201848381,7.30966899,1905.5,1905.4,0.00788001]
[1742201848767,7.30966899,1905.5,1904.9,4.25777]
[1742201848768,1.05004,1904.9,1904.7,3.2078]
[1742201848972,3.55244508,1904.8,1904.7,4.96701]
[1742201849274,3.55244508,1904.8,1904.7,45.76701]
[1742201851477,4.60250508,1904.8,1904.7,45.76701]
[1742201851779,4.60250508,1904.8,1904.7,44.7169]
[1742201852279,5.92200508,1904.8,1904.7,46.0481]
[1742201852881,6.61640508,1904.8,1904.7,45.339]
[1742201853281,6.61640508,1904.8,1904.7,42.1312]
[1742201855681,6.70179682,1904.8,1904.7,42.1312]
[1742201856979,6.61640508,1904.8,1904.7,42.1312]
[1742201857177,6.70179729,1904.8,1904.7,42.1312]
[1742201857483,4.94933729,1904.8,1904.7,43.18131]
[1742201857783,3.54444508,1904.8,1904.7,43.18131]
[1742201857982,3.54444508,1904.8,1904.7,42.1312]
[1742201858182,0.14344508,1904.8,1904.7,43.18131]
[1742201858383,3.54344508,1904.8,1904.7,43.18131]
[1742201859086,3.54344508,1904.8,1904.7,42.1312]
[1742201859677,3.54344508,1904.8,1904.7,43.18131]
[1742201861289,3.54344508,1904.8,1904.7,42.1312]
[1742201861290,4.59350508,1904.8,1904.7,42.1312]
[1742201861585,3.54344508,1904.8,1904.7,43.18131]
[1742201862186,4.59350508,1904.8,1904.7,42.1312]
[1742201862384,5.95880508,1904.8,1904.7,42.1312]
[1742201863086,4.90874508,1904.8,1904.7,43.18131]
[1742201863281,4.90874508,1904.8,1904.7,42.1312]
[1742201864090,4.90874508,1904.8,1904.7,43.18131]
[1742201864584,4.90874508,1904.8,1904.7,42.1312]
[1742201864786,4.90874508,1904.8,1904.7,43.18131]
[1742201865581,4.98046762,1904.8,1904.7,43.18131]
[1742201865885,4.98046762,1904.8,1904.7,46.38911]
[1742201866378,3.61516762,1904.8,1904.7,46.38911]
[1742201870684,0.21516762,1904.8,1904.7,46.38911]
[1742201870890,3.60816762,1904.8,1904.7,46.38911]
[1742201872289,5.04646762,1904.8,1904.7,46.38911]
[1742201872887,3.60816762,1904.8,1904.7,46.38911]
[1742201874697,0.21516762,1904.8,1904.7,46.38911]
[1742201875192,3.393,1905.0,1904.8,1.05006]
[1742201875393,3.2078,1905.1,1904.8,1.05006]
[1742201875394,3.2078,1905.5,1905.1,2.62466]
[1742201875589,3.2078,1905.5,1905.4,1.04973]
[1742201875784,8.05515707,1905.5,1905.4,1.04973]
[1742201875989,7.9698,1905.5,1905.4,1.04973]
[1742201876496,4.763,1905.5,1905.4,2.47113]
[1742201878094,1.04973,1905.4,1905.3,1.04975]
[1742201878394,2.057,1905.4,1905.3,1.04978]
[1742201880789,3.10674,1905.4,1905.2,2.4712]
[1742201880993,2.0717,1905.3,1905.2,2.4712]
[1742201882196,3.12148,1905.3,1905.2,1.4214]
[1742201882389,2.0717,1905.3,1905.0,4.25773]
[1742201882593,4.7595,1905.2,1905.0,4.25773]
[1742201882795,1.3675,1905.1,1905.0,4.25773]
[1742201883202,3.392,1905.2,1905.1,1.04989]
[1742201883501,1.3675,1905.3,1905.1,0.6644]
[1742201883698,3.399,1905.3,1905.2,1.75704]
[1742201884406,3.46310484,1905.3,1905.2,1.75704]
[1742201885199,4.51288484,1905.3,1905.2,1.75704]
[1742201885405,5.93928484,1905.3,1905.2,1.75704]
[1742201885796,5.93928484,1905.3,1905.2,0.7072]
[1742201886004,1.04984,1905.2,1905.1,1.04985]
[1742201886199,2.47624,1905.2,1905.1,1.04985]
[1742201886399,2.54034484,1905.2,1905.1,1.04985]
[1742201886905,1.04989,1905.1,1905.0,10.25773]
[1742201887204,2.47629,1905.1,1905.0,9.2078]
[1742201887505,1.49050484,1905.1,1905.0,10.25775]
[1742201888098,2.17990484,1905.1,1905.0,4.25775]
[1742201890405,2.17990484,1905.1,1905.0,3.2078]
[1742201891004,2.17990484,1905.1,1905.0,4.25775]
[1742201892901,2.17990484,1905.1,1905.0,3.2078]
[1742201893103,3.22979484,1905.1,1905.0,3.2078]
[1742201893402,2.17990484,1905.1,1905.0,3.2078]
[1742201893703,2.17990484,1905.1,1905.0,1.04995]
[1742201893909,3.22979484,1905.1,1904.9,4.25776]
[1742201894215,4.7709,1905.0,1904.9,4.25776]
[1742201894603,4.83500484,1905.0,1904.9,4.25776]
[1742201896310,4.83500484,1905.0,1904.9,5.62256]
[1742201898405,5.88495484,1905.0,1904.9,4.5726]
[1742201898606,6.55995484,1905.0,1904.9,4.5726]
[1742201899715,6.55995484,1905.0,1904.9,5.6226]
[1742201900012,5.51000484,1905.0,1904.9,5.6226]
[1742201900713,1.05004,1904.9,1904.7,51.05787]
[1742201901013,1.05004,1904.9,1904.7,45.05787]
[1742201901014,0.6655,1904.8,1904.7,45.05787]
[1742201901606,0.72960484,1904.8,1904.7,45.05787]
[1742201902006,0.72960484,1904.8,1904.7,46.51477]
[1742201902007,2.08560484,1904.8,1904.7,46.51477]
[1742201903312,0.06410484,1904.8,1904.7,46.51477]
[1742201907510,1.04971,1905.5,1905.4,1.0497]
[1742201907705,5.84421,1905.5,1905.4,1.0497]
[1742201907902,5.84417,1905.5,1905.4,1.0497]
[1742201908106,4.7945,1905.5,1905.4,1.0497]
[1742201908605,4.7945,1905.5,1905.4,2.4909]
[1742201909014,1.4015,1905.5,1905.4,2.4909]
[1742201909309,31.91448001,1905.6,1905.5,1.04967]
[1742201909513,34.60968001,1905.6,1905.5,2.39267]
[1742201909714,31.21668001,1905.6,1905.5,2.39267]
[1742201909912,33.91068001,1905.6,1905.5,2.39267]
[1742201911008,1.04967,1905.5,1905.4,1.04968]
[1742201911210,1.04974,1905.4,1905.2,3.2078]
[1742201911509,0.6938,1905.4,1905.3,2.39278]
[1742201911709,4.0868,1905.4,1905.3,2.39278]
[1742201912119,3.393,1905.4,1905.3,2.39278]
[1742201912614,3.393,1905.4,1905.3,3.06098]
[1742201915012,0.7084,1905.5,1905.4,1.04973]
[1742201915212,4.1004,1905.5,1905.4,5.65773]
[1742201916614,0.7084,1905.5,1905.4,5.65773]
[1742201917117,4.1004,1905.5,1905.4,5.65773]
[1742201917417,29.11688001,1905.6,1905.4,5.65773]
[1742201917615,29.11688001,1905.6,1905.5,2.41847]
[1742201917811,32.50888001,1905.6,1905.5,3.12467]
[1742201921617,33.55850001,1905.6,1905.5,3.12467]
[1742201921921,33.55850001,1905.6,1905.5,1.04967]
[1742201923323,1.04967,1905.5,1905.4,5.698]
[1742201923514,1.04979,1905.3,1905.0,9.2078]
[1742201923713,4.7834,1905.2,1905.1,2.49039]
[1742201926619,6.2089,1905.2,1905.1,2.49039]
[1742201928621,4.8175,1905.2,1905.1,2.49039]
[1742201928823,3.392,1905.2,1905.1,3.17769]
[1742201929031,2.7801,1905.5,1905.4,1.04973]
[1742201929320,6.1721,1905.5,1905.4,1.04973]
[1742201929521,6.1721,1905.5,1905.4,41.84973]
[1742201929921,6.1721,1905.5,1905.4,43.20083]
[1742201930220,6.1721,1905.5,1905.4,40.8]
[1742201930221,7.30711629,1905.5,1905.4,40.8]
[1742201930817,7.30712278,1905.5,1905.4,40.8]
[1742201931320,7.30712297,1905.5,1905.4,40.8]
[1742201934122,7.30712867,1905.5,1905.4,40.8]
[1742201934920,1.04978,1905.3,1905.2,3.2078]
[1742201935530,1.04978,1905.3,1905.2,44.0078]
[1742201935721,1.13514249,1905.3,1905.2,44.0078]
[1742201935925,1.13514268,1905.3,1905.2,44.0078]
[1742201936327,1.04978,1905.3,1905.2,44.0078]
[1742201937924,1.04978,1905.3,1905.2,45.3891]
[1742201939230,1.13514224,1905.3,1905.2,45.3891]
[1742201939430,1.13514224,1905.3,1905.2,44.0078]
[1742201941922,1.13514224,1905.3,1905.2,45.413]
[1742201942224,1.13514341,1905.3,1905.2,45.413]
[1742201943820,0.08536341,1905.3,1905.2,46.46284]
[1742201944131,2.36523,1905.4,1905.2,46.4628]
[1742201944321,3.392,1905.3,1905.2,45.0576]
[1742201944523,4.8235,1905.3,1905.2,45.0576]
[1742201947635,5.87328,1905.3,1905.2,45.0576]
[1742201947826,5.87328,1905.3,1905.2,44.0078]
[1742201948131,4.8235,1905.3,1905.2,45.05764]
[1742201948629,5.87328,1905.3,1905.2,44.0078]
[1742201949032,5.95864326,1905.3,1905.2,40.8]
[1742201951528,5.87328,1905.3,1905.2,40.8]
[1742201953529,5.87328,1905.3,1905.2,41.5198]
[1742201954039,5.87328,1905.3,1905.2,40.8]
[1742201955537,1.04995,1905.0,1904.9,3.2078]
[1742201955738,1.04995,1905.0,1904.4,2.62565]
[1742201955739,4.44198,1905.0,1904.8,1.77524]
[1742201956039,4.44195,1905.0,1904.9,40.8]
[1742201956241,4.52732771,1905.0,1904.9,42.1919]
[1742201956836,4.44195,1905.0,1904.9,42.1919]
[1742201957937,3.392,1905.0,1904.9,46.4497]
[1742201958137,3.392,1905.2,1905.1,1.04989]
[1742201958740,3.392,1905.2,1905.1,43.19799]
[1742201959134,3.392,1905.2,1905.1,46.40579]
[1742201960541,3.392,1905.2,1905.1,47.08909]
[1742201966642,33.37434001,1905.6,1905.2,2.62456]
[1742201966850,32.50888001,1905.6,1905.5,1.04967]
[1742201967350,32.50888001,1905.6,1905.5,41.84967]
[1742201967748,29.11688001,1905.6,1905.5,43.27367]
[1742201967949,29.11688001,1905.6,1905.5,46.48147]
[1742201968842,29.11688001,1905.6,1905.5,43.27367]
[1742201969254,30.16650001,1905.6,1905.5,43.27367]
[1742201969455,29.11688001,1905.6,1905.5,43.27367]
[1742201975660,30.84640001,1905.6,1905.5,42.224]
[1742201976166,30.84640001,1905.6,1905.5,43.27367]
[1742201976462,32.28680001,1905.6,1905.5,43.27367]
[1742201976967,31.23718001,1905.6,1905.5,43.27367]
[1742201977765,32.28680001,1905.6,1905.5,43.27367]
[1742201978066,31.23718001,1905.6,1905.5,43.27367]
[1742201978860,32.28680001,1905.6,1905.5,43.27367]
[1742201979063,31.23718001,1905.6,1905.5,43.27367]
[1742201979664,32.28680001,1905.6,1905.5,43.27367]
[1742201979863,31.23718001,1905.6,1905.5,43.27367]
[1742201980366,32.28680001,1905.6,1905.5,43.27367]
[1742201980567,31.23718001,1905.6,1905.5,43.27367]
[1742201982359,0.00788001,1905.6,1905.5,46.48147]
[1742201982863,1.38628001,1905.6,1905.5,46.48147]
[1742201983661,1.38628001,1905.6,1905.5,43.27367]
[1742201983962,3.11430001,1905.6,1905.5,40.8]
[1742201985163,3.11430001,1905.6,1905.5,42.1898]
[1742201987270,3.11430001,1905.6,1905.5,40.8]
[1742201988166,1.04973,1905.4,1905.3,3.2078]
[1742201988367,4.44073,1905.4,1905.3,3.2078]
[1742201988673,4.44073,1905.4,1905.3,44.0078]
[1742201988873,5.82853,1905.4,1905.3,44.0078]
[1742201991879,5.82853,1905.4,1905.3,40.8]
[1742201993872,1.04995,1905.0,1904.9,1.3279]
[1742201994182,4.44095,1905.0,1904.9,1.3279]
[1742201994871,4.44095,1905.0,1904.9,42.1279]
[1742201995180,5.12075,1905.0,1904.9,43.1779]
[1742201995676,4.0708,1905.0,1904.9,43.1779]
[1742201995880,3.391,1905.0,1904.9,43.1779]
[1742201996075,4.7603,1905.0,1904.9,43.1779]
[1742201997879,5.81025,1905.0,1904.9,43.1779]
[1742201998079,5.81025,1905.0,1904.9,42.1279]
[1742201998274,5.81025,1905.0,1904.9,43.1779]
[1742201998473,5.81025,1905.0,1904.9,42.1279]
[1742201998674,4.7603,1905.0,1904.9,43.1779]
[1742201999271,5.81025,1905.0,1904.9,43.1779]
[1742201999783,5.81025,1905.0,1904.9,42.1279]
[1742202000076,5.81025,1905.0,1904.9,43.1779]
[1742202000285,5.81025,1905.0,1904.9,42.1279]
[1742202000687,5.81025,1905.0,1904.9,1.3279]
[1742202002583,5.81025,1905.0,1904.9,2.0552]
[1742202003586,5.81025,1905.0,1904.9,1.3279]
[1742202004382,1.05006,1904.8,1904.7,3.2078]
[1742202004982,1.05006,1904.8,1904.7,45.05791]
[1742202005878,1.375,1904.8,1904.7,46.50221]
[1742202006273,4.1084,1905.0,1904.9,1.05]
[1742202006580,4.44097,1905.0,1904.8,1.4443]
[1742202006785,0.6776,1905.2,1905.0,1.04995]
[1742202006988,3.11014,1905.2,1905.1,1.3543]
[1742202007289,6.50214,1905.2,1905.1,1.3543]